bitfinex/quotes_ETHUSD_20250720
["timestamp","ask_amount","ask_price","bid_price","bid_amount"]
[1753002413382,5.82152932,3709.5,3708.3,7.39764637]
[1753002413695,2.69604439,3709.2,3708.4,2.69656442]
[1753002413847,3.125735,3709.1,3708.4,2.69656442]
[1753002414051,5.82184447,3709.1,3708.5,2.69650278]
[1753002414249,2.69593706,3709.3,3708.2,3.13410984]
[1753002414250,3.125735,3709.0,3708.7,2.69634737]
[1753002414554,3.125735,3709.2,3708.2,2.69668201]
[1753002414785,3.125735,3709.5,3708.7,1.6295]
[1753002414949,3.125735,3709.6,3708.8,4.718]
[1753002415331,3.125735,3709.6,3709.1,2.69602529]
[1753002415591,3.125735,3709.6,3709.2,4.716]
[1753002416086,3.125735,3709.6,3709.3,2.69591563]
[1753002416248,3.125735,3709.6,3709.2,7.41198419]
[1753002416662,3.125735,3709.6,3709.2,7.41197486]
[1753002416999,3.125735,3709.6,3709.2,4.716]
[1753002417496,3.125735,3709.6,3709.5,2.6957811]
[1753002417700,3.125735,3709.6,3709.4,2.6958385]
[1753002418249,3.125735,3709.6,3709.3,2.69590414]
[1753002418471,3.125735,3709.6,3709.4,2.69584447]
[1753002418903,3.125735,3709.6,3709.2,4.716]
[1753002419081,3.125735,3709.6,3709.3,2.69588085]
[1753002419382,3.125735,3709.6,3709.2,4.716]
[1753002419383,3.125735,3709.6,3709.4,2.69582721]
[1753002419701,3.125735,3709.6,3709.3,2.69591511]
[1753002420405,3.125735,3709.6,3709.5,2.6957811]
[1753002420807,3.125735,3709.6,3708.7,1.6295]
[1753002421104,3.125735,3709.6,3709.5,2.6957811]
[1753002421507,3.125735,3709.6,3709.5,4.688]
[1753002421668,3.596035,3709.6,3709.5,4.688]
[1753002422002,3.125735,3709.6,3709.5,4.688]
[1753002422303,3.125735,3709.6,3709.5,7.3837811]
[1753002423870,3.125735,3709.6,3709.5,7.5181811]
[1753002424205,3.127735,3709.6,3709.5,7.5181811]
[1753002424581,3.127735,3709.6,3709.5,8.53958566]
[1753002425106,0.002,3711.2,3711.1,2.69461884]
[1753002425282,0.002,3711.2,3711.1,12.02811884]
[1753002425482,0.002,3711.2,3711.1,0.1344]
[1753002425684,0.002,3711.2,3711.1,7.38861884]
[1753002426483,0.25182149,3712.8,3712.0,2.69394145]
[1753002426672,0.4703,3712.7,3712.1,4.698]
[1753002426874,2.69316049,3713.2,3712.2,4.698]
[1753002427070,0.4703,3712.9,3712.3,4.696]
[1753002427285,0.4703,3712.9,3711.4,3.0]
[1753002427484,2.69338837,3712.8,3712.0,2.6939003]
[1753002427684,0.4703,3712.9,3711.2,1.5672]
[1753002427907,0.4703,3712.7,3711.4,3.0]
[1753002428104,0.4703,3712.7,3711.5,4.691]
[1753002428105,4.6341,3712.5,3711.5,4.691]
[1753002428313,2.69407997,3711.9,3711.5,4.691]
[1753002428520,0.4703,3711.8,3711.5,4.691]
[1753002428827,2.69398087,3712.0,3711.5,4.691]
[1753002429028,1.6341,3712.5,3711.5,5.42955146]
[1753002429240,2.69368711,3712.4,3711.7,2.69411885]
[1753002429537,4.79805454,3712.5,3711.8,4.687]
[1753002429884,4.79800447,3712.5,3711.8,4.687]
[1753002430285,2.69396435,3712.1,3711.8,4.687]
[1753002430521,0.4703,3712.0,3710.7,3.0]
[1753002430700,0.4703,3712.0,3710.6,6.469]
[1753002430701,2.69403809,3711.9,3711.1,2.69460911]
[1753002430905,3.16427619,3712.0,3711.2,7.37452367]
[1753002431189,3.16427619,3712.0,3711.2,7.37453215]
[1753002431392,3.16427619,3712.0,3711.0,2.69467645]
[1753002431661,3.16427619,3712.0,3711.2,2.69449661]
[1753002431933,3.16427619,3712.0,3711.3,2.6944557]
[1753002432435,0.4703,3712.0,3711.1,4.677]
[1753002432642,3.16427334,3712.0,3711.0,2.69463298]
[1753002432786,4.32774376,3712.5,3710.6,6.469]
[1753002432787,0.4703,3711.9,3710.6,6.469]
[1753002432996,2.69430847,3711.6,3710.8,2.69476511]
[1753002433220,1.6205,3711.4,3710.6,6.469]
[1753002433431,1.6205,3711.4,3710.5,2.69500699]
[1753002433596,30.4703,3711.3,3710.7,4.668]
[1753002433935,2.69483922,3710.8,3710.6,4.667]
[1753002434101,3.0,3711.2,3709.9,2.69543055]
[1753002434319,0.4703,3710.7,3710.0,4.665]
[1753002434526,2.69498215,3710.6,3710.0,4.665]
[1753002434705,0.4703,3711.1,3710.0,7.36040039]
[1753002434901,2.69496464,3710.7,3710.0,7.36040039]
[1753002435132,2.69498871,3710.6,3710.0,4.665]
[1753002435532,2.69492037,3710.7,3710.1,2.69534347]
[1753002435805,0.4703,3711.2,3710.2,0.02695272]
[1753002436037,2.69469779,3711.0,3710.3,2.69514722]
[1753002436239,2.69469779,3711.0,3710.4,4.658]
[1753002436442,0.1344,3710.7,3710.4,4.658]
[1753002437241,3.16529512,3710.6,3710.4,4.658]
[1753002437439,0.6047,3710.5,3710.4,4.658]
[1753002437621,0.1344,3710.5,3710.4,4.658]
[1753002439351,1.6205,3711.4,3710.4,5.39331981]
[1753002439557,1.5306,3711.9,3711.1,2.69456222]
[1753002439729,2.69324373,3713.0,3709.5,13.54140456]
[1753002439730,0.1344,3711.4,3709.5,13.54140456]
[1753002439932,2.0806,3710.8,3708.9,0.1344]
[1753002440129,2.0806,3710.8,3709.3,2.69587841]
[1753002440130,0.1344,3709.7,3709.3,2.69587841]
[1753002440471,0.1344,3709.7,3709.4,2.69580547]
[1753002440652,0.1344,3709.7,3709.3,0.73518784]
[1753002440840,0.1344,3709.7,3709.5,4.655]
[1753002441213,0.1344,3709.7,3709.6,4.652]
[1753002441414,1.5306,3710.8,3709.6,4.652]
[1753002441656,1.5306,3710.8,3710.1,2.69534513]
[1753002441657,0.1344,3710.2,3710.1,2.69534513]
[1753002441838,0.1344,3710.2,3710.1,4.649]
[1753002442151,0.1344,3710.2,3710.1,7.34534513]
[1753002442351,0.1344,3710.2,3710.1,4.65]
[1753002442658,0.6047,3710.2,3710.1,4.65]
[1753002442824,3.29997249,3710.2,3710.1,4.65]
[1753002443024,4.86777249,3710.2,3710.1,4.65]
[1753002444617,2.69570941,3709.6,3709.2,0.001]
[1753002444933,2.69570941,3709.6,3709.5,4.64]
[1753002445139,2.69566144,3709.7,3709.5,4.64]
[1753002445353,2.69570843,3709.6,3709.5,4.64]
[1753002445664,0.1344,3709.7,3709.5,4.64]
[1753002446027,0.6047,3709.7,3709.5,4.64]
[1753002446227,0.1344,3709.7,3709.5,4.64]
[1753002447278,0.1344,3709.7,3709.2,0.001]
[1753002447485,0.6047,3709.7,3709.6,4.634]
[1753002447833,3.30033576,3709.7,3709.6,4.634]
[1753002448066,2.69573742,3709.6,3709.4,4.629]
[1753002448253,2.6957811,3709.5,3709.4,4.629]
[1753002448466,0.4304,3709.5,3709.4,4.629]
[1753002449279,3.1261811,3709.5,3709.4,4.629]
[1753002449483,0.4304,3709.5,3709.4,4.629]
[1753002449684,3.1261811,3709.5,3709.4,4.629]
[1753002449882,0.1344,3709.4,3709.3,4.619]
[1753002450052,1.5678,3710.2,3709.3,4.619]
[1753002450252,2.69585377,3709.4,3709.3,4.619]
[1753002450514,3.12625377,3709.4,3709.3,4.62]
[1753002450681,2.83032645,3709.3,3709.2,0.001]
[1753002450853,0.1344,3709.3,3709.2,4.621]
[1753002451989,0.5648,3709.3,3709.2,4.621]
[1753002452159,0.1344,3709.3,3709.2,4.621]
[1753002452542,2.83032645,3709.3,3709.2,4.621]
[1753002452743,3.26072645,3709.3,3709.2,4.621]
[1753002453025,3.26072645,3709.3,3709.2,4.613]
[1753002453160,3.26072645,3709.3,3709.2,0.001]
[1753002453345,3.26072645,3709.3,3709.2,4.61]
[1753002455075,4.91402645,3709.3,3709.2,0.001]
[1753002455237,7.77962645,3709.3,3709.2,0.001]
[1753002455645,37.77962645,3709.3,3709.2,0.001]
[1753002455841,37.37962645,3709.3,3709.2,0.001]
[1753002456955,7.37962645,3709.3,3709.2,0.001]
[1753002457368,7.34922645,3709.3,3709.2,0.001]
[1753002457576,37.34922645,3709.3,3709.2,0.001]
[1753002458100,37.73872645,3709.3,3709.2,0.001]
[1753002460395,7.73872645,3709.3,3709.2,0.001]
[1753002460602,37.73872645,3709.3,3709.2,0.001]
[1753002462319,2.69599913,3709.2,3707.8,0.001]
[1753002462493,0.55,3709.0,3707.9,4.581]
[1753002462669,2.69681023,3708.1,3707.9,4.581]
[1753002462869,2.69687162,3708.0,3707.9,4.581]
[1753002463075,2.69682231,3708.1,3707.9,4.581]
[1753002463504,2.69675348,3708.2,3707.9,4.581]
[1753002463683,2.69680279,3708.1,3707.8,0.001]
[1753002464195,0.3895,3708.6,3707.9,4.575]
[1753002464506,2.69651363,3708.5,3707.9,7.88586788]
[1753002465212,0.1344,3708.3,3708.0,7.26986353]
[1753002465513,0.1344,3708.3,3708.0,4.573]
[1753002465731,2.83106796,3708.3,3708.0,4.573]
[1753002465899,0.1344,3708.3,3708.0,4.573]
[1753002466234,0.1344,3708.3,3707.9,3.3108744]
[1753002466533,2.69611005,3709.1,3707.8,0.001]
[1753002466534,0.3895,3708.6,3708.0,4.571]
[1753002466696,2.69677839,3708.2,3708.0,4.571]
[1753002467139,2.69678488,3708.2,3708.0,4.571]
[1753002467332,2.69679889,3708.1,3708.0,4.571]
[1753002467743,2.69679889,3708.1,3707.8,0.001]
[1753002467744,2.69694436,3707.9,3707.8,0.001]
[1753002467905,2.69694436,3707.9,3707.8,4.573]
[1753002468306,1.5251,3708.3,3707.8,4.573]
[1753002468628,2.69685597,3708.1,3707.8,4.573]
[1753002468832,2.69685597,3708.1,3708.0,0.001]
[1753002469204,2.69679889,3708.1,3708.0,0.001]
[1753002469603,3.08629889,3708.1,3708.0,4.573]
[1753002469905,3.08629889,3708.1,3708.0,0.001]
[1753002470612,0.55,3707.9,3705.9,2.69839058]
[1753002470824,0.55,3707.9,3706.4,4.572]
[1753002470825,2.6976719,3706.9,3706.4,4.572]
[1753002471036,1.6205,3707.1,3706.4,4.572]
[1753002471255,3.0,3707.7,3706.4,5.0185]
[1753002471256,1.6205,3707.6,3706.4,5.0185]
[1753002471421,3.0,3707.4,3706.8,4.573]
[1753002471602,1.6205,3707.6,3706.8,4.573]
[1753002471807,2.6974596,3707.2,3706.8,4.573]
[1753002472345,30.0,3707.1,3706.9,4.572]
[1753002472640,2.6976719,3706.9,3706.8,0.001]
[1753002472944,32.6976719,3706.9,3706.8,0.001]
[1753002473174,35.6976719,3706.9,3706.8,0.001]
[1753002473450,36.1280719,3706.9,3706.8,0.001]
[1753002473660,30.0,3706.9,3706.8,0.001]
[1753002473816,0.4304,3707.4,3706.8,0.001]
[1753002474343,1.6205,3707.6,3706.9,2.69761733]
[1753002474530,30.0,3707.5,3706.8,0.001]
[1753002474726,30.0,3707.5,3706.9,4.572]
[1753002474930,30.0,3707.5,3707.0,2.69755114]
[1753002475130,30.0,3707.5,3707.0,2.69759913]
[1753002475534,1.6205,3707.6,3707.0,2.69759913]
[1753002475934,1.6205,3707.6,3706.9,4.572]
[1753002476132,1.6609,3708.1,3706.9,5.54742671]
[1753002476333,30.0,3708.0,3707.4,2.697261]
[1753002476534,30.0,3708.0,3706.9,5.52045]
[1753002476535,30.0,3708.0,3707.6,2.69709653]
[1753002476756,0.4304,3708.3,3707.6,2.69709653]
[1753002476757,0.4304,3708.3,3707.6,2.69711211]
[1753002477070,0.4304,3708.3,3707.5,7.27020833]
[1753002477222,30.0,3708.2,3707.6,2.69716258]
[1753002477741,2.69673385,3708.2,3707.6,2.69716258]
[1753002477921,2.69673385,3708.2,3707.5,7.27022274]
[1753002478117,2.0976,3708.5,3707.8,2.69696653]
[1753002478366,32.69663039,3708.4,3707.7,2.69706814]
[1753002478656,2.69663039,3708.4,3707.8,2.69700908]
[1753002479030,30.0,3708.3,3707.5,4.573]
[1753002479245,0.452,3708.2,3707.0,2.69758997]
[1753002479418,0.452,3708.2,3707.2,2.69740727]
[1753002479624,2.69689633,3708.0,3707.1,4.572]
[1753002479825,4.6456,3708.5,3707.2,0.4432]
[1753002480057,32.69663206,3708.4,3707.7,2.697025]
[1753002480259,7.34211976,3708.5,3707.8,4.572]
[1753002480466,32.69659533,3708.4,3707.8,7.26900051]
[1753002480677,32.6966607,3708.3,3707.8,4.572]
[1753002480871,30.452,3708.2,3707.8,4.572]
[1753002481031,30.452,3708.1,3707.8,4.572]
[1753002481227,1.6456,3708.5,3706.8,1.658]
[1753002481228,30.1344,3707.8,3706.8,1.658]
[1753002481455,0.1344,3707.1,3706.9,4.572]
[1753002481671,2.69742246,3707.3,3706.9,4.572]
[1753002481842,3.14942246,3707.3,3706.9,4.572]
[1753002482167,2.69745673,3707.2,3706.9,4.572]
[1753002482364,0.1344,3706.9,3706.8,0.001]
[1753002482584,0.1344,3706.9,3706.8,4.573]
[1753002483036,0.1344,3706.9,3706.8,8.03653968]
[1753002483231,0.1344,3706.9,3706.8,4.573]
[1753002484131,0.1344,3706.9,3706.8,7.27074468]
[1753002484743,0.1344,3706.9,3706.8,7.71394468]
[1753002484949,1.5693,3708.0,3706.8,7.71394468]
[1753002484950,3.0,3707.9,3707.1,2.69750626]
[1753002485150,3.0,3707.7,3707.2,4.572]
[1753002485453,1.5693,3708.0,3707.3,0.4432]
[1753002485659,1.5805,3708.5,3707.3,2.0548]
[1753002485861,30.0,3708.4,3708.3,2.69665345]
[1753002486176,30.0,3708.4,3708.3,7.26865345]
[1753002486347,0.452,3709.1,3708.3,4.572]
[1753002486553,30.0,3709.0,3708.3,4.572]
[1753002486749,30.0,3709.0,3707.8,4.572]
[1753002486750,0.1344,3708.3,3707.8,4.572]
[1753002487175,1.6451,3708.3,3708.0,2.69686265]
[1753002487363,4.65912355,3708.7,3707.8,7.2690135]
[1753002487568,0.1344,3708.0,3707.8,4.572]
[1753002487743,0.1344,3708.0,3707.7,2.6970799]
[1753002487943,0.1344,3708.0,3707.8,7.26801309]
[1753002488183,0.1344,3708.0,3707.8,4.571]
[1753002488486,0.1344,3708.0,3707.9,2.69694436]
[1753002488660,0.1344,3708.0,3707.9,3.14014436]
[1753002489081,2.69630976,3708.8,3707.9,3.14014436]
[1753002489082,2.69629497,3708.8,3708.0,2.69682745]
[1753002489289,0.1344,3708.2,3708.1,2.69679889]
[1753002489473,0.1344,3708.2,3708.0,2.6968543]
[1753002489781,0.1344,3708.2,3707.9,2.69693627]
[1753002489945,0.1344,3708.2,3707.8,4.571]
[1753002490146,0.1344,3708.2,3707.9,4.571]
[1753002490998,2.69664242,3708.4,3708.0,4.57]
[1753002491290,3.14864242,3708.4,3708.0,4.57]
[1753002491478,0.1344,3708.0,3707.8,2.69700579]
[1753002491688,0.1344,3708.0,3707.9,4.57]
[1753002492275,0.1344,3708.0,3707.9,7.26694436]
[1753002493296,0.1344,3708.0,3707.9,8.70654646]
[1753002493470,0.1344,3708.0,3704.8,3.23600721]
[1753002493471,2.69949249,3704.4,3703.1,3.0]
[1753002493671,7.15571113,3704.1,3704.0,0.01066966]
[1753002493872,3.2498569,3703.9,3703.8,0.2170754]
[1753002494106,37.3023269,3703.9,3703.8,0.2170754]
[1753002494413,36.7523269,3703.9,3703.8,0.07641362]
[1753002494559,40.3023269,3703.9,3703.8,0.07641362]
[1753002494762,40.7543269,3703.9,3703.8,0.07641362]
[1753002496465,39.7523269,3703.9,3703.8,0.07641362]
[1753002497367,2.7008054,3702.6,3702.3,5.194]
[1753002497596,4.05247,3702.5,3702.0,0.33523216]
[1753002497903,2.7011696,3702.1,3702.0,0.33523216]
[1753002498363,2.7011696,3702.1,3698.6,0.30558971]
[1753002498364,2.1341,3701.9,3700.5,0.4432]
[1753002498564,4.05247,3701.8,3701.0,1.6465]
[1753002498763,34.05247,3702.7,3701.1,5.83986899]
[1753002498968,34.05247,3702.7,3701.9,1.6465]
[1753002498969,4.05247,3702.7,3701.9,1.6465]
[1753002499199,4.05247,3702.7,3702.0,0.47021242]
[1753002499401,4.05247,3702.7,3702.1,5.215]
[1753002499607,4.05247,3702.7,3702.2,1.17367]
[1753002499815,4.05247,3702.7,3702.3,0.4432]
[1753002500313,3.0,3703.7,3702.4,0.4432]
[1753002500509,2.7001485,3703.5,3702.4,0.4432]
[1753002500811,4.05247,3703.4,3702.5,6.50400877]
[1753002501035,34.05247,3704.4,3702.9,1.6465]
[1753002501325,2.69956536,3704.3,3703.0,5.6462]
[1753002501475,4.05247,3704.2,3703.1,0.4432]
[1753002501913,4.05247,3704.2,3703.2,0.02700367]
[1753002502085,0.452,3705.5,3703.2,0.02700367]
[1753002502086,34.30116873,3705.4,3703.5,2.70007662]
[1753002502292,34.30116873,3705.3,3703.6,0.4432]
[1753002502477,2.69921561,3704.8,3703.7,5.2]
[1753002502806,4.05247,3704.7,3703.7,7.89999814]
[1753002503008,4.05247,3704.7,3704.0,2.69976233]
[1753002503235,6.75161007,3704.9,3704.1,0.26997623]
[1753002503510,4.05247,3704.8,3704.1,2.23287623]
[1753002503811,0.1344,3704.5,3704.1,1.9629]
[1753002504111,4.05247,3704.4,3704.2,0.47019638]
[1753002504316,4.05247,3704.4,3704.3,0.4432]
[1753002504629,2.69752811,3707.1,3704.9,2.69911027]
[1753002504630,4.05247,3705.7,3704.9,2.69911027]
[1753002504781,0.1344,3705.5,3705.0,5.184]
[1753002504981,1.5187,3706.4,3704.8,0.4432]
[1753002504982,4.05247,3705.4,3704.8,0.4432]
[1753002505182,0.1344,3705.2,3705.1,5.182]
[1753002505429,2.69831949,3706.1,3705.1,8.32418248]
[1753002505707,0.1344,3705.5,3705.1,5.6252]
[1753002505912,4.05247,3705.4,3705.2,0.4432]
[1753002506089,4.05247,3705.4,3705.3,0.4432]
[1753002507011,4.05247,3705.6,3705.3,0.4432]
[1753002507223,0.24845761,3705.5,3705.3,0.4432]
[1753002507387,4.05247,3705.4,3705.3,0.4432]
[1753002507723,4.05247,3705.6,3705.3,5.6122]
[1753002507889,4.05247,3705.6,3705.3,3.14201864]
[1753002508219,4.05247,3705.6,3705.4,5.158]
[1753002509031,4.05247,3705.6,3705.4,4.158]
[1753002509327,4.05247,3705.6,3705.3,0.4432]
[1753002509525,4.05247,3705.6,3705.4,5.15]
[1753002509887,4.05247,3705.6,3705.5,2.69869113]
[1753002510092,4.30107363,3705.6,3705.5,2.69869113]
[1753002510295,4.30107363,3705.6,3705.5,5.77451742]
[1753002510518,4.05247,3705.6,3705.5,5.77451742]
[1753002511731,3.3242918,3705.6,3705.5,8.90891742]
[1753002511891,0.002,3705.7,3705.6,5.6986183]
[1753002512086,0.002,3705.7,3705.6,8.40004904]
[1753002512820,0.002,3705.7,3705.6,13.51904904]
[1753002513130,0.002,3705.7,3705.6,8.40004904]
[1753002513489,0.24878276,3707.0,3705.9,3.55]
[1753002513690,2.69721532,3707.6,3705.9,3.55]
[1753002513691,0.24878276,3706.9,3706.8,2.69768657]
[1753002513891,0.24878276,3706.9,3706.8,7.81768657]
[1753002514306,2.69721532,3707.6,3706.8,7.81768657]
[1753002514508,2.69721532,3707.6,3706.4,0.4558]
[1753002514509,2.69709569,3707.7,3706.9,2.69767061]
[1753002514706,7.71354375,3708.0,3707.0,5.11]
[1753002514707,32.6971725,3707.6,3707.0,5.11]
[1753002514912,2.6971725,3707.6,3707.0,5.11]
[1753002515200,2.6971725,3707.6,3707.1,5.107]
[1753002515520,2.69696377,3707.9,3707.2,2.69745246]
[1753002515758,3.0,3707.7,3707.1,7.80452477]
[1753002515950,3.0,3707.9,3707.1,5.107]
[1753002516102,2.6970043,3707.9,3707.1,7.80450205]
[1753002516303,5.69702036,3707.8,3707.1,7.80451684]
[1753002516842,2.69714585,3707.7,3707.1,5.107]
[1753002517046,2.69700588,3707.9,3707.2,2.69744875]
[1753002517342,5.69692213,3708.0,3707.2,2.6974536]
[1753002517552,5.69692213,3708.0,3707.3,2.69737313]
[1753002517732,3.0,3708.1,3707.2,0.4558]
[1753002518061,3.0,3708.1,3707.3,5.083]
[1753002518062,3.0,3708.0,3707.3,5.083]
[1753002518218,3.0,3708.2,3706.9,2.69760178]
[1753002518551,3.0,3708.2,3706.7,3.15354829]
[1753002518552,2.69712727,3707.7,3707.0,7.78059777]
[1753002518846,2.69870579,3708.3,3706.8,2.69774079]
[1753002519053,2.6972925,3707.5,3706.9,5.075]
[1753002519230,2.69743763,3707.3,3707.0,5.074]
[1753002519438,30.0,3707.0,3706.0,6.477]
[1753002519616,5.69762758,3707.0,3706.1,5.073]
[1753002519802,30.444,3706.9,3706.2,5.073]
[1753002520148,2.69803724,3706.4,3706.2,5.073]
[1753002520500,2.69790317,3706.6,3706.2,5.073]
[1753002520764,1.4,3706.7,3706.2,5.073]
[1753002520914,4.6139,3707.3,3706.3,0.9631]
[1753002521216,2.69752887,3707.1,3706.5,2.69793772]
[1753002521415,2.69746674,3707.2,3706.5,2.69793772]
[1753002521626,3.0,3707.5,3706.9,2.69764265]
[1753002521811,0.444,3707.7,3707.0,5.063]
[1753002522042,2.6974502,3707.3,3707.0,5.063]
[1753002522442,2.6971753,3707.6,3707.0,5.063]
[1753002522443,2.69732179,3707.4,3707.0,5.063]
[1753002522928,2.69740733,3707.3,3707.0,5.063]
[1753002523183,2.69723533,3707.5,3707.0,5.063]
[1753002523323,0.444,3707.4,3706.5,4.36220666]
[1753002523530,2.69787405,3706.7,3706.6,5.047]
[1753002523774,2.69776067,3706.8,3706.6,5.047]
[1753002523974,2.69781746,3706.7,3706.6,5.047]
[1753002524341,4.77,3707.3,3706.0,4.36261174]
[1753002524342,2.6976719,3706.9,3706.0,4.36261174]
[1753002524545,0.1344,3706.4,3706.2,2.69813222]
[1753002524729,0.1344,3706.4,3706.2,3.15393222]
[1753002525356,0.1344,3706.4,3706.3,2.69810862]
[1753002525878,0.1344,3706.4,3706.3,0.4558]
[1753002526084,0.1344,3706.4,3706.3,3.15390862]
[1753002527285,2.69819673,3706.2,3705.3,3.15462279]
[1753002527426,1.6302,3706.6,3705.5,2.69864059]
[1753002527627,0.1344,3705.8,3705.5,2.69864059]
[1753002527832,0.1344,3705.8,3705.5,2.69869031]
[1753002528064,0.1344,3705.8,3705.6,2.69860699]
[1753002528307,1.6302,3706.6,3705.6,0.4558]
[1753002528532,0.1344,3706.0,3705.6,0.4558]
[1753002528772,0.1344,3706.0,3705.6,3.15439182]
[1753002528942,0.1344,3706.0,3705.7,5.018]
[1753002529138,0.1344,3706.0,3705.7,7.7165446]
[1753002529338,0.1344,3706.0,3705.7,5.018]
[1753002529783,0.1344,3706.0,3705.8,2.69846952]
[1753002530002,0.1344,3706.0,3705.9,2.69839984]
[1753002530179,0.1344,3706.3,3705.9,0.4558]
[1753002530385,0.1344,3706.3,3706.1,2.69819657]
[1753002530545,4.77,3706.2,3706.1,2.69819657]
[1753002530741,4.77,3706.2,3706.1,8.15999657]
[1753002531368,4.77,3706.2,3706.1,5.006]
[1753002531579,4.77,3706.2,3706.1,7.70425422]
[1753002532885,4.77,3706.2,3706.1,5.006]
[1753002533247,4.77,3706.2,3706.1,7.70425422]
[1753002533452,4.77,3706.2,3706.1,8.16005422]
[1753002533651,4.77,3706.2,3706.0,2.69830837]
[1753002533906,4.77,3706.2,3706.1,4.986]
[1753002534198,4.77,3706.2,3705.9,2.69838172]
[1753002534483,4.77,3706.2,3706.1,4.982]
[1753002534675,7.46818152,3706.2,3706.1,4.978]
[1753002534988,4.77,3706.2,3706.1,4.978]
[1753002535287,0.1344,3706.1,3705.7,2.69847466]
[1753002535588,0.1344,3706.1,3705.8,4.976]
[1753002535808,0.1344,3706.1,3705.8,7.6744571]
[1753002536082,4.77,3706.2,3706.0,2.69832703]
[1753002536283,0.25201496,3706.1,3706.0,2.69832703]
[1753002536490,4.77,3706.2,3706.1,2.69825422]
[1753002536792,4.77,3706.3,3706.0,7.66431545]
[1753002536952,4.77,3706.3,3706.0,7.66430053]
[1753002537387,0.002,3706.2,3705.7,0.1344]
[1753002537591,0.002,3706.2,3705.9,2.69837119]
[1753002538404,0.002,3706.2,3706.0,4.954]
[1753002538905,0.002,3706.2,3705.5,0.4568]
[1753002538906,2.69853519,3705.8,3705.5,0.001]
[1753002539094,0.25219669,3705.9,3705.5,0.001]
[1753002539395,1.5055,3706.1,3705.5,0.001]
[1753002539396,2.95052673,3706.0,3705.5,0.001]
[1753002539597,2.69833004,3706.0,3705.5,0.001]
[1753002539810,1.92639783,3706.2,3705.5,0.001]
[1753002539962,2.69845109,3705.9,3705.5,0.001]
[1753002540163,2.69835265,3706.0,3705.5,0.001]
[1753002540364,1.92639783,3706.2,3705.6,0.4747]
[1753002540601,4.62462541,3706.2,3705.7,4.954]
[1753002541192,1.92639783,3706.2,3705.5,0.001]
[1753002541490,2.38539783,3706.2,3705.6,4.95]
[1753002541682,2.69833159,3706.0,3705.7,4.945]
[1753002542302,2.69833159,3706.0,3705.5,0.001]
[1753002542467,0.459,3706.0,3705.5,0.001]
[1753002542673,3.0,3706.0,3705.5,0.001]
[1753002542872,4.2041183,3705.6,3705.5,0.001]
[1753002543670,4.5055,3706.1,3705.5,0.001]
[1753002543917,2.6986183,3705.6,3705.5,0.001]
[1753002544082,9.3276183,3705.6,3705.5,0.001]
[1753002544280,8.8686183,3705.6,3705.5,0.001]
[1753002544478,9.3276183,3705.6,3705.5,0.001]
[1753002545528,42.3276183,3705.6,3705.5,0.001]
[1753002546002,50.2276183,3705.6,3705.5,0.001]
[1753002547918,56.6460183,3705.6,3705.5,0.001]
[1753002548801,56.6420183,3705.6,3705.5,0.001]
[1753002549409,51.7370183,3705.6,3705.5,0.001]
[1753002549724,57.1860183,3705.6,3705.5,0.001]
[1753002549928,3.24920103,3704.8,3704.7,0.001]
[1753002550105,3.24920103,3704.8,3700.9,1.6075]
[1753002550106,0.1806,3702.9,3700.9,1.6075]
[1753002550442,0.1806,3702.9,3700.6,9.17923211]
[1753002550443,2.70117486,3702.1,3701.3,2.70169751]
[1753002550643,4.77,3702.9,3701.1,5.07583068]
[1753002550644,0.1806,3702.0,3701.1,5.07583068]
[1753002550826,0.1806,3702.8,3701.2,1.63451826]
[1753002551014,0.1806,3702.8,3701.3,0.4747]
[1753002551214,4.77,3702.9,3701.4,0.0270168]
[1753002551416,1.6553,3703.2,3702.1,1.5335]
[1753002551621,1.6553,3703.7,3702.9,2.70052156]
[1753002551806,1.6553,3703.7,3702.8,0.4747]
[1753002552008,1.6553,3703.7,3703.0,2.70050742]
[1753002552212,1.6553,3703.7,3702.8,0.4747]
[1753002552413,32.7000756,3703.6,3702.8,0.4747]
[1753002552613,2.70016803,3703.5,3702.9,0.31753894]
[1753002552836,1.4,3703.4,3702.9,0.31753894]
[1753002553038,1.4,3703.4,3702.4,0.4747]
[1753002553221,1.4,3703.4,3703.3,2.70029433]
[1753002553427,3.0,3704.0,3703.3,2.70029433]
[1753002553711,3.0,3704.0,3703.1,2.70041553]
[1753002553932,2.69987517,3703.9,3703.2,4.893]
[1753002554146,3.25119636,3704.2,3703.2,8.55345923]
[1753002554344,3.0,3704.0,3703.4,2.70015534]
[1753002554552,3.0,3704.0,3703.5,2.70014416]
[1753002554736,1.6553,3704.3,3703.2,5.85316185]
[1753002554935,1.6553,3704.3,3703.6,0.4747]
[1753002554936,2.699639,3704.2,3703.6,0.4747]
[1753002555141,2.699639,3704.2,3703.3,0.73866619]
[1753002555446,4.35488422,3704.3,3703.5,2.70014239]
[1753002555748,4.35488422,3704.3,3703.3,3.43893612]
[1753002555749,1.6553,3704.9,3703.6,0.4747]
[1753002555946,32.69925276,3704.8,3703.7,4.888]
[1753002556252,30.0,3704.7,3703.3,0.73866619]
[1753002556438,2.69936092,3704.6,3703.8,2.6999076]
[1753002556818,2.69942363,3704.5,3703.5,8.06084484]
[1753002557021,2.69929416,3704.7,3703.7,2.69997475]
[1753002557220,2.69945636,3704.5,3703.8,2.69991892]
[1753002557529,2.69945636,3704.5,3703.8,3.77594805]
[1753002557530,2.69942972,3704.5,3703.8,3.77594805]
[1753002557852,2.69965715,3704.2,3703.8,1.07607638]
[1753002558017,2.69956491,3704.4,3703.7,4.879]